Cogmind - Beta 16 @@@ ROGUE MODE // 2025.11.05 @ 20:22:22 Player: Demo Result: Destroyed by H-88 Terminator with Heavy Machine Gun Performance ------------- Evolutions (8) 4000 Regions Visited (13) 2600 Robots Destroyed (60) 300 Value Destroyed (2416) 2416 Prototype IDs (18) 360 Alien Tech Used (0) 0 Bonus (1893) 1893 TOTAL SCORE: 11569 Bonus ------- High Alert Combat Kills 108 Follower Combat Kills 535 Entered DSFs 500 Registered with UFD 300 Met Optimus in HQ 500 Friendly Fire -50 Cogmind --------- Core Integrity 0/1450 Matter 270/300 Energy 99/100 System Corruption 26% Temperature Cool (0) Movement Core (50) Location -2/Protoforge Parts ------- > --- POWER (2) -------- (None) > --- PROPULSION (6) --- (None) > --- UTILITY (11) ----- (None) > --- WEAPON (4) ------- (None) > --- INVENTORY (5) ---- Heavy Regenerative Plating Neutron Missile Launcher Ragnarok Missile Launcher Shock Maul Peak State ------------ > --- POWER ------------ Micro Antimatter Reactor > --- PROPULSION ------- Improved Gyrokinetic Inverter Improved Gyrokinetic Inverter Improved Gyrokinetic Inverter Experimental Gyrokinetic Inverter > --- UTILITY ---------- Advanced Heat Sink Deep Structural Scanner Enhanced Optical Array Advanced Melee Analysis Suite Advanced Melee Analysis Suite Advanced Launcher Guidance Computer Medium Regenerative Plating SHELL Armor Advanced Hacking Suite > --- WEAPON ----------- Heavy Quantum Rifle Advanced Datajack Shock Maul > --- INVENTORY -------- Heavy Regenerative Plating Heavy Shock Bomb Launcher Missile Launcher Neutron Missile Launcher [Rating: 143] Favorites ----------- Power Micro Antimatter Reactor Power Core Light Fission Core Reactor Micro Antimatter Reactor Propulsion Improved Gyrokinetic Inverter Treads Light Treads Leg Thunder Leg Hover Unit Improved Gyrokinetic Inverter Utility Advanced Melee Analysis Suite Device Deep Structural Scanner Processor Advanced Melee Analysis Suite Hackware Hacking Suite Protection Hardened Light Armor Plating Weapon Companion Sword Energy Gun Heavy EM Pulse Gun Ballistic Gun Heavy Machine Gun Launcher Neutron Missile Launcher Impact Weapon Shock Maul Slashing Weapon Companion Sword Special Melee Weapon Advanced Datajack Build | -11 -10 -10 -10 -7 -5 -5 -4 -4 -4 -3 -2 -2 -2 ------- Run | Yrd Mat Min Sub Scr Fac DSF Fac Was Fac Res Res Tes Frg Slots Evolved 16 | . . . . . 10 . 2 . . 2 2 . . Power 1 | . . . . . 1 . . . . . . . . Propulsion 4 | . . . . . 4 . . . . . . . . Utility 9 | . . . . . 5 . 2 . . 2 . . . Weapon 2 | . . . . . . . . . . . 2 . . Parts Attached 102 | 2 1 . . 10 8 6 6 4 14 18 23 10 . Power 16 | . . . . . . . 2 . 3 6 5 . . Engine . | . . . . . . . . . . . . . . Core 2 | . . . . . . . 2 . . . . . . Reactor 14 | . . . . . . . . . 3 6 5 . . Propulsion 23 | 2 . . . 2 3 5 . . 6 . 5 . . Treads 5 | 2 . . . 2 1 . . . . . . . . Leg 1 | . . . . . 1 . . . . . . . . Wheel . | . . . . . . . . . . . . . . Hover 17 | . . . . . 1 5 . . 6 . 5 . . Flight . | . . . . . . . . . . . . . . Utility 45 | . . . . 2 4 1 4 3 4 11 11 5 . Device 22 | . . . . . 1 . 3 2 2 6 8 . . Storage . | . . . . . . . . . . . . . . Processor 9 | . . . . 2 1 . 1 . . 4 . 1 . Hackware 3 | . . . . . . . . . 1 . 2 . . Protection 11 | . . . . . 2 1 . 1 1 1 1 4 . Artifact . | . . . . . . . . . . . . . . Weapon 18 | . 1 . . 6 1 . . 1 1 1 2 5 . Energy Gun 5 | . . . . 2 . . . . . . . 3 . Energy Cannon . | . . . . . . . . . . . . . . Ballistic Gun 5 | . . . . 3 1 . . 1 . . . . . Ballistic Cannon . | . . . . . . . . . . . . . . Launcher 2 | . . . . . . . . . 1 . . 1 . Special Weapon . | . . . . . . . . . . . . . . Impact Weapon 1 | . . . . . . . . . . 1 . . . Slashing Weapon 4 | . 1 . . 1 . . . . . . 2 . . Piercing Weapon . | . . . . . . . . . . . . . . Special Melee Weapon 1 | . . . . . . . . . . . . 1 . Unidentified Prototypes 13 | . . . . 1 . . . . 2 1 3 6 . Parts Lost 38 | . . . . . . 2 . . . 10 17 4 5 Power 5 | . . . . . . . . . . 2 2 . 1 Propulsion 9 | . . . . . . . . . . 1 4 1 3 Utility 20 | . . . . . . 2 . . . 7 8 2 1 Weapon 4 | . . . . . . . . . . . 3 1 . Highest Loss Streak 9 | . . . . . . 2 . . . 5 9 2 5 To Critical Strikes . | . . . . . . . . . . . . . . Average Backups 4 | . . 2 2 3 4 4 3 4 5 4 4 4 4 Power . | . . . . . . . 1 1 . . . . . Propulsion . | . . 1 1 . . . . . . . . . . Utility 2 | . . 1 1 2 2 2 1 2 3 2 1 1 1 Weapon 1 | . . . . . 1 2 1 1 1 1 2 3 3 Tool/Special . | . . . . . . . . . . . . . . Unused Backups 11 | . . . . 4 1 1 . 1 1 1 . 2 . Power 2 | . . . . . . . . 1 1 . . . . Propulsion . | . . . . . . . . . . . . . . Utility 6 | . . . . 3 1 1 . . . 1 . . . Weapon 2 | . . . . . . . . . . . . 2 . Tool/Special 1 | . . . . 1 . . . . . . . . . Average Slot Usage (%) 73 | . 32 42 42 58 45 54 79 100 99 94 83 61 28 Core 1 | . . . . . . . 5 10 6 . . . . Reactor 4 | . . . . . . . . . 3 8 7 4 1 Treads 7 | . 28 28 28 28 11 . . . . . . . . Hover 16 | . . . . . 4 20 31 31 30 27 19 15 6 Device 10 | . . . . . 3 . 11 21 21 20 16 5 . Processor 16 | . . . . 22 15 17 17 18 15 20 17 16 15 Hackware 2 | . . . . . . . . . 2 4 7 4 4 Protection 3 | . . . . . 6 9 5 7 7 2 1 6 1 Ballistic Gun 1 | . . . . . . . 2 7 5 2 . . . Impact Weapon 1 | . . . . . . . . . . . 4 3 . Slashing Weapon 4 | . 4 14 14 3 1 5 5 2 4 4 6 . . Peak Build Rating 143 | 2 3 3 3 19 46 57 90 101 114 127 140 143 95 Average Rating 82 | 1 2 3 3 12 34 45 74 92 105 119 118 118 46 On Entrance 49 | . 2 3 3 3 14 36 53 90 95 112 103 77 95 Avg Prop Armor Cover (%) 25 | 41 40 39 39 38 41 17 21 . . 1 1 . 10 Naked Turns 8 | . . . . . . . . . . . . . 8 Heaviest Build 55 | . 2 2 2 7 12 11 35 38 55 51 50 52 38 Greatest Support 78 | 3 3 3 3 3 23 23 71 71 72 78 74 53 40 Greatest Overweight (x) 2 | . . . . 2 1 . . . . . 1 1 1 Average Overweight (x) . | . . . . . . . . . . . . . . Largest Inventory Capacity 5 | 5 5 5 5 5 5 5 5 5 5 5 5 5 5 Average Capacity 5 | 5 5 5 5 5 5 5 5 5 5 5 5 5 5 Most Carried 5 | . 2 2 2 5 5 5 5 5 5 5 5 5 5 Average Carried 4 | . . 2 2 3 4 4 3 4 4 4 4 4 4 Final Capacity 5 | 5 5 5 5 5 5 5 5 5 5 5 5 5 5 Final Carried 5 | . 2 2 2 5 5 4 4 5 5 5 4 5 5 Class Distribution -------------------- 45% | Mutant 16% | Scout 11% | Ninja 7% | Hacker-Scout 7% | Hacker-Gladiator 3% | Infiltrator-Ninja 3% | Gladiator Dominant Class ---------------- Mutant | -10/Materials Mutant | -10/Mines Mutant | -10/Subcaves Mutant | -7/Scraptown Mutant | -5/Factory Mutant | -5/DSF Infiltrator-Ninja | -4/Factory Infiltrator-Ninja | -4/Waste Ninja | -4/Factory Scout | -3/Research Hacker-Scout | -2/Research Mutant | -2/Testing Mutant | -2/Protoforge Resources | -11 -10 -10 -10 -7 -5 -5 -4 -4 -4 -3 -2 -2 -2 ----------- Run | Yrd Mat Min Sub Scr Fac DSF Fac Was Fac Res Res Tes Frg Matter Collected 1886 | 187 . . 55 220 . 10 . 324 248 264 273 283 22 Remotely . | . . . . . . . . . . . . . . Salvage Created 2397 | . . . 55 . . . . 308 176 812 682 342 22 Parts 98 | . . . 8 . . . . 1 9 41 34 3 2 Haulers Intercepted 3 | . . . . . . . . . . 1 2 . . Recyclers Shooed . | . . . . . . . . . . . . . . Parts Field Recycled . | . . . . . . . . . . . . . . Retrieved Matter . | . . . . . . . . . . . . . . Parts Self-Destructed 8 | . . . 8 . . . . . . . . . . Prevented . | . . . . . . . . . . . . . . Parts Restored . | . . . . . . . . . . . . . . Kills | -11 -10 -10 -10 -7 -5 -5 -4 -4 -4 -3 -2 -2 -2 ------- Run | Yrd Mat Min Sub Scr Fac DSF Fac Was Fac Res Res Tes Frg Combat Hostiles Destroyed 37 | . . . 3 . . . . 1 1 12 17 3 . Melee 13 | . . . 3 . . . . . . 6 2 2 . Guns 2 | . . . . . . . . 1 1 . . . . AOE 21 | . . . . . . . . . . 6 15 . . Classes Destroyed 13 | . . . 1 . . . . 1 4 4 2 1 . Worker 7 | . . . . . . . . . 1 1 3 1 1 Builder 2 | . . . . . . . . . . . 1 1 . Tunneler 1 | . . . . . . . . . . . 1 . . Hauler 3 | . . . . . . . . . . 1 2 . . Recycler 3 | . . . . . . . . . 1 1 1 . . Operator 1 | . . . . . . . . . 1 . . . . Watcher 4 | . . . . . . . . . . 3 . 1 . Swarmer 24 | . . . 3 . . . . . . 7 14 . . Grunt 2 | . . . . . . . . . 1 . 1 . . Researcher 2 | . . . . . . . . . . . . 2 . Hunter 2 | . . . . . . . . . . 2 . . . Programmer 8 | . . . . . . . . . . 3 2 3 . Compactor 1 | . . . . . . . . 1 . . . . . Best Kill Streak 9 | . . . 2 . . . . 1 2 7 9 2 1 Combat Bots Only 6 | . . . 2 . . . . 1 1 5 6 1 . Max Kills in Single Turn 6 | . . . 1 . . . . 1 1 3 6 1 1 Gunslinging . | . . . . . . . . . . . . . . Exploded 4 | . . . . . . . . . . 3 4 . . Melee 1 | . . . 1 . . . . . . 1 1 1 . Uniques/NPCs Destroyed . | . . . . . . . . . . . . . . Combat | -11 -10 -10 -10 -7 -5 -5 -4 -4 -4 -3 -2 -2 -2 -------- Run | Yrd Mat Min Sub Scr Fac DSF Fac Was Fac Res Res Tes Frg Hostile Shots Fired 588 | . . . 44 . . 63 . . 32 133 119 107 90 Missed 214 | . . . 7 . . 22 . . 17 53 57 26 32 Hits 374 | . . . 37 . . 41 . . 15 80 62 81 58 Melee 1 | . . . . . . . . . . . 1 . . Projectile 373 | . . . 37 . . 41 . . 15 80 61 81 58 AOE 1 | . . . . . . . . . . . . 1 . Critical Strikes 15 | . . . . . . 1 . . . 1 4 7 2 Part Disruptions 3 | . . . . . . . . . . . . 3 . Damage Taken 8807 | . . . 288 . . 838 . 107 346 1773 1933 2091 1431 Core 2103 | . . . 38 . . 221 . . 61 333 439 136 875 Absorbed by Shields . | . . . . . . . . . . . . . . Regen/Repaired (Parts) 761 | . . . . . . . . 114 . 27 105 452 63 Core Remaining (%) 85 | 100 . . . 84 . 77 . . 94 74 . . . Volleys Fired 29 | . . . . . . . . 10 8 4 7 . . Largest 2 | . . . . . . . . 2 1 1 1 . . Hottest 60 | . . . . . . . . 60 30 49 49 . . Shots Fired 39 | . . . . . . . . 20 8 4 7 . . Gun 28 | . . . . . . . . 20 8 . . . . Cannon . | . . . . . . . . . . . . . . Launcher 11 | . . . . . . . . . . 4 7 . . Special . | . . . . . . . . . . . . . . Kinetic 28 | . . . . . . . . 20 8 . . . . Thermal . | . . . . . . . . . . . . . . Explosive 11 | . . . . . . . . . . 4 7 . . Electromagnetic . | . . . . . . . . . . . . . . Robot Hit Streak 5 | . . . . . . . . 5 5 2 3 . . Robot Miss Streak 3 | . . . . . . . . 3 2 . 1 . . Penetration Max . | . . . . . . . . . . . . . . Secondary Targets . | . . . . . . . . . . . . . . Shots Hit Robots 103 | . . . 5 . . . 1 11 9 25 25 27 . Core Hits 69 | . . . 2 . . . . 4 3 23 34 2 1 Critical Kills . | . . . . . . . . . . . . . . Critical Parts Destroyed 12 | . . . . . . . . . . . . 12 . Critical Strikes 18 | . . . . . . . . . . 2 4 12 . Smash 12 | . . . . . . . . . . . . 12 . Sever 4 | . . . . . . . . . . . 4 . . Melee Attacks 177 | . . 4 22 . 1 . 2 1 10 44 48 45 . Impact 53 | . . . . . . . . . . 1 7 45 . Slashing 124 | . . 4 22 . 1 . 2 1 10 43 41 . . Piercing . | . . . . . . . . . . . . . . Sneak Attacks 10 | . . . . . . . . . 2 3 1 4 . Combat Hostiles . | . . . . . . . . . . . . . . Follow-up Attacks 6 | . . . . . . . . . . 1 5 . . Damage Inflicted 8754 | . . . 119 . . . 52 362 347 2128 3923 1800 23 Guns 472 | . . . . . . . . 362 110 . . . . Cannons . | . . . . . . . . . . . . . . Explosions 3718 | . . . . . . . . . . 923 2795 . . Melee 4528 | . . . 119 . . . 52 . 224 1205 1128 1800 . Ramming 36 | . . . . . . . . . 13 . . . 23 Kinetic 472 | . . . . . . . . 362 110 . . . . Thermal 397 | . . . . . . . . . . . 397 . . Explosive 3321 | . . . . . . . . . . 923 2398 . . Electromagnetic . | . . . . . . . . . . . . . . Impact 2025 | . . . . . . . . . . 57 168 1800 . Slashing 2503 | . . . 119 . . . 52 . 224 1148 960 . . Piercing . | . . . . . . . . . . . . . . Highest Corruption 26 | . 2 2 2 . . . . 12 19 5 8 26 26 Average Corruption 8 | . 2 2 2 . . . . 8 12 1 3 13 26 Corruption Purged 4 | . . . . . . . . . . . 4 . . Corruption Blocked . | . . . . . . . . . . . . . . Effects 66 | . . . 1 . . . . 3 16 5 6 23 12 Message Errors 14 | . . . . . . . . 1 2 1 3 6 1 Matter Fused 13 | . . . . . . . . . 3 2 2 5 1 Heat Flow Errors 7 | . . . . . . . . 1 2 . . 4 . Energy Discharges 8 | . . . 1 . . . . . 3 1 . 2 1 Parts Fused 1 | . . . . . . . . . . . . 1 . Data Loss (minor) 7 | . . . . . . . . . 2 1 1 2 1 Data Loss (major) 2 | . . . . . . . . 1 1 . . . . Misfires 1 | . . . . . . . . . 1 . . . . Misdirections 12 | . . . . . . . . . 1 . . 3 8 Weapon Failures 1 | . . . . . . . . . 1 . . . . Overload Shots . | . . . . . . . . . . . . . . Overflow Damage 1526 | . . . 8 . . . 12 . 94 173 234 1005 . Projectiles . | . . . . . . . . . . . . . . Explosions 227 | . . . . . . . . . . 55 172 . . Melee 1299 | . . . 8 . . . 12 . 94 118 62 1005 . Knockbacks 4 | . . . . . . . . . . . 1 3 . Impact 4 | . . . . . . . . . . . 1 3 . Kinetic . | . . . . . . . . . . . . . . Secondary . | . . . . . . . . . . . . . . Self-Inflicted Damage 111 | . . . . . . . . . 6 . 94 . 11 Shots 2 | . . . . . . . . . . . 2 . . Rammed 5 | . . . . . . . . . 2 . . . 3 Targets Rammed 5 | . . . . . . . . . 2 . . . 3 Kicked . | . . . . . . . . . . . . . . Crushed . | . . . . . . . . . . . . . . Highest Temperature 286 | . . . . . . . . 176 252 200 89 286 . Average Temperature 91 | . . . . . . . . 93 88 100 31 130 . Received Heat Transfer 540 | . . . . . . 210 . . 21 18 27 75 189 Siege Activations . | . . . . . . . . . . . . . . Martial Activations . | . . . . . . . . . . . . . . Shielding Activations . | . . . . . . . . . . . . . . Robots Disrupted . | . . . . . . . . . . . . . . Combat Hostiles . | . . . . . . . . . . . . . . Robots Corrupted 4 | . . . . . . . . . . . . 4 . Combat Hostiles 1 | . . . . . . . . . . . . 1 . Parts Fried 9 | . . . . . . . . . . 1 . 8 . Impact Corruptions 35 | . . . . . . . . . . 1 2 32 . Robots Melted . | . . . . . . . . . . . . . . Combat Hostiles . | . . . . . . . . . . . . . . Parts Melted . | . . . . . . . . . . . . . . Heat Transferred 250 | . . . . . . . . . . . 250 . . Parts Sabotaged . | . . . . . . . . . . . . . . Parts Stolen . | . . . . . . . . . . . . . . Parts Stripped . | . . . . . . . . . . . . . . Power Chain Reactions 2 | . . . . . . . . . . . 2 . . Alert | -11 -10 -10 -10 -7 -5 -5 -4 -4 -4 -3 -2 -2 -2 ------- Run | Yrd Mat Min Sub Scr Fac DSF Fac Was Fac Res Res Tes Frg Maximum Alert Level 3 | . . . . . . . . . 2 2 3 2 . Low Security (%) 59 | 100 100 100 . . 100 100 100 100 41 64 67 . 100 Level 1 26 | . . . . . . . . . 31 32 21 57 . Level 2 13 | . . . . . . . . . 26 2 9 42 . Level 3 . | . . . . . . . . . . . 2 . . Level 4 . | . . . . . . . . . . . . . . Level 5 . | . . . . . . . . . . . . . . High Security . | . . . . . . . . . . . . . . Max Security . | . . . . . . . . . . . . . . Peak Influence 735 | . . . . . . . 15 110 448 416 735 519 166 Initial 421 | . . . . . . . . . 56 201 214 421 166 Average 199 | . . . . . . . 2 41 241 210 192 390 138 Influence Increases 3015 | . . . 70 . 2 . 23 140 707 635 1048 295 95 Destroy 0b10 Robot/C 1040 | . . . 60 . . . . . 300 240 340 100 . Destroy 0b10 Robot/NC 115 | . . . . . . . . . 25 30 40 15 5 Destroy Leader 174 | . . . 10 . . . . . 60 48 44 12 . Allied During Kill 156 | . . . . . . . . . 156 . . . . Successful Hack 36 | . . . . . . . 8 . . 10 . 18 . Disable Machine 120 | . . . . . . . 15 . 30 30 . 45 . Destroy Structure 849 | . . . . . 2 . . 140 76 172 429 30 . Partial Spotted 30 | . . . . . . . . . . 30 . . . Lose Combat Pursuer 495 | . . . . . . . . . 60 75 195 75 90 Influence Decreases 2854 | . . . 70 . 2 . 23 60 404 636 680 749 230 Entered New Map 833 | . . . . . . . . . 24 182 168 329 130 Time Decay 1271 | . . . 70 . 2 . 23 40 180 334 342 230 50 Lost Part 360 | . . . . . . . . . . 100 170 40 50 Lost Ally 240 | . . . . . . . . 20 200 20 . . . Purge Threat 150 | . . . . . . . . . . . . 150 . Squads Dispatched 48 | . . . . . . 1 4 . 10 15 13 3 2 Investigation 20 | . . . . . . . 2 . 5 7 6 . . Extermination 9 | . . . . . . . . . 1 3 3 2 . Reinforcement 15 | . . . . . . 1 2 . 2 5 2 1 2 Assault 2 | . . . . . . . . . . . 2 . . Garrison 2 | . . . . . . . . . 2 . . . . Intercept . | . . . . . . . . . . . . . . Searches Triggered . | . . . . . . . . . . . . . . Construction Impeded 2 | . . . . . . . . . 1 1 . . . Haulers Reinforced 2 | . . . . . . . . . . . 2 . . Active Scanning Responses . | . . . . . . . . . . . . . . Cargo Convoy Interrupts . | . . . . . . . . . . . . . . Stealth | -11 -10 -10 -10 -7 -5 -5 -4 -4 -4 -3 -2 -2 -2 --------- Run | Yrd Mat Min Sub Scr Fac DSF Fac Was Fac Res Res Tes Frg Distress Signals 11 | . . . . . . . . . 1 4 1 1 4 Communications Jammed . | . . . . . . . . . . . . . . Distress Signals . | . . . . . . . . . . . . . . Times Spotted 138 | . 1 . 3 . . 3 2 6 11 30 43 14 25 Peak Tracking Total 18 | . 1 . 3 . . 3 1 2 6 7 17 6 18 Tactical Retreats 13 | . . . . . . . . . 1 3 4 2 3 Traps | -11 -10 -10 -10 -7 -5 -5 -4 -4 -4 -3 -2 -2 -2 ------- Run | Yrd Mat Min Sub Scr Fac DSF Fac Was Fac Res Res Tes Frg Traps Triggered 9 | . 1 . . . . . 1 . 1 3 1 . 2 Indirectly . | . . . . . . . . . . . . . . Trap Hack Attempts . | . . . . . . . . . . . . . . Triggered . | . . . . . . . . . . . . . . Disarmed . | . . . . . . . . . . . . . . Reprogrammed . | . . . . . . . . . . . . . . Reused . | . . . . . . . . . . . . . . Traps Extracted . | . . . . . . . . . . . . . . Installed . | . . . . . . . . . . . . . . Triggered . | . . . . . . . . . . . . . . Machines | -11 -10 -10 -10 -7 -5 -5 -4 -4 -4 -3 -2 -2 -2 ---------- Run | Yrd Mat Min Sub Scr Fac DSF Fac Was Fac Res Res Tes Frg Machines Disabled 8 | . . . . . . . 1 . 2 2 . 3 . Max in Single Turn 1 | . . . . . . . 1 . 1 1 . 1 . Machines Repaired . | . . . . . . . . . . . . . . Machines Dismantled . | . . . . . . . . . . . . . . Machines Sabotaged . | . . . . . . . . . . . . . . Overloaded Fab Kills . | . . . . . . . . . . . . . . Hacking | -11 -10 -10 -10 -7 -5 -5 -4 -4 -4 -3 -2 -2 -2 --------- Run | Yrd Mat Min Sub Scr Fac DSF Fac Was Fac Res Res Tes Frg Machines Accessed 39 | . . . . 2 1 . 3 . 5 9 10 9 . Terminals 14 | . . . . . 1 . 1 . . 2 2 8 . Fabricators 3 | . . . . . . . 1 . . . 2 . . Repair Stations 3 | . . . . . . . . . . 1 2 . . Recycling Units 12 | . . . . . . . 1 . 3 4 4 . . Scanalyzers 3 | . . . . . . . . . 1 1 . 1 . Garrison Access 2 | . . . . . . . . . 1 1 . . . Total Hacks 97 | . . . . 20 2 . 5 . 11 24 14 21 . Successful 50 | . . . . 20 1 . 1 . 3 7 4 14 . Failed 47 | . . . . . 1 . 4 . 8 17 10 7 . Catastrophic 9 | . . . . . . . 2 . 1 1 4 1 . Database Lockouts . | . . . . . . . . . . . . . . Manual 51 | . . . . . . . 5 . 6 14 14 12 . Terminals 31 | . . . . . 2 . 2 . . 5 2 20 . Fabricators 4 | . . . . . . . 1 . . . 3 . . Repair Stations 4 | . . . . . . . . . . 2 2 . . Recycling Units 23 | . . . . . . . 2 . 5 9 7 . . Scanalyzers 10 | . . . . . . . . . 4 5 . 1 . Garrison Access 5 | . . . . . . . . . 2 3 . . . Terminal Hacks 27 | . . . . 20 1 . . . . . . 6 . Record 19 | . . . . 19 . . . . . . . . . Part Schematic 2 | . . . . . . . . . . . . 2 . Open Door 2 | . . . . 1 . . . . . . . 1 . Open DSF 1 | . . . . . 1 . . . . . . . . Unreport Threat 1 | . . . . . . . . . . . . 1 . Locate Traps 1 | . . . . . . . . . . . . 1 . Protovariant Controls 1 | . . . . . . . . . . . . 1 . Fabricator Hacks . | . . . . . . . . . . . . . . Repair Station Hacks . | . . . . . . . . . . . . . . Recycling Unit Hacks . | . . . . . . . . . . . . . . Scanalyzer 5 | . . . . . . . . . 1 3 . 1 . Retrieve Study 5 | . . . . . . . . . 1 3 . 1 . Garrison Access Hacks . | . . . . . . . . . . . . . . Unauthorized Hacks 18 | . . . . . . . 1 . 2 4 4 7 . Terminals 7 | . . . . . . . . . . . . 7 . Track 1 | . . . . . . . . . . . . 1 . Botnet 5 | . . . . . . . . . . . . 5 . Operators 1 | . . . . . . . . . . . . 1 . Fabricators 1 | . . . . . . . 1 . . . . . . Fabnet 1 | . . . . . . . 1 . . . . . . Repair Stations 3 | . . . . . . . . . . 1 2 . . Patch 3 | . . . . . . . . . . 1 2 . . Recycling Units 7 | . . . . . . . . . 2 3 2 . . Fedlink 7 | . . . . . . . . . 2 3 2 . . Scanalyzers . | . . . . . . . . . . . . . . Garrison Access . | . . . . . . . . . . . . . . Data Cores Recovered . | . . . . . . . . . . . . . . Used . | . . . . . . . . . . . . . . Hacking Detections 27 | . . . . . 1 . 2 . 4 6 6 8 . Full Trace Events 10 | . . . . . . . 2 . 3 3 2 . . Feedback Events . | . . . . . . . . . . . . . . Feedback Blocked . | . . . . . . . . . . . . . . Robot Schematics Acquired 1 | . . . . . . . . . . . . 1 . Robots Built . | . . . . . . . . . . . . . . Authchips . | . . . . . . . . . . . . . . Time . | . . . . . . . . . . . . . . Total Robot Build Rating . | . . . . . . . . . . . . . . Part Schematics Acquired 5 | . . . . . . . . . . . . 5 . Parts Built . | . . . . . . . . . . . . . . Authchips . | . . . . . . . . . . . . . . Time . | . . . . . . . . . . . . . . Total Part Build Rating . | . . . . . . . . . . . . . . Part Studies Acquired 5 | . . . . . . . . . 1 3 . 1 . Parts Repaired . | . . . . . . . . . . . . . . Time . | . . . . . . . . . . . . . . Parts Recycled . | . . . . . . . . . . . . . . Recycled Matter . | . . . . . . . . . . . . . . Retrieved Matter . | . . . . . . . . . . . . . . Retrieved Components . | . . . . . . . . . . . . . . Parts Scanalyzed . | . . . . . . . . . . . . . . Part Schematics Acquired . | . . . . . . . . . . . . . . Parts Damaged . | . . . . . . . . . . . . . . Bothacking | -11 -10 -10 -10 -7 -5 -5 -4 -4 -4 -3 -2 -2 -2 ------------ Run | Yrd Mat Min Sub Scr Fac DSF Fac Was Fac Res Res Tes Frg Used RIF Installer . | . . . . . . . . . . . . . . Robots Hacked 1 | . . . . . . . . . . . 1 . . Non-combat . | . . . . . . . . . . . . . . Combat 1 | . . . . . . . . . . . 1 . . Robot Hacks Applied . | . . . . . . . . . . . . . . Relay Couplers Released . | . . . . . . . . . . . . . . Fabnet Peak Effective % 3 | . . . . . . . . . . 3 1 1 1 Autooverrided 1 | . . . . . . . . . . . 1 . . Robots Rewired . | . . . . . . . . . . . . . . Allies Hacked . | . . . . . . . . . . . . . . Hacks Repelled . | . . . . . . . . . . . . . . Allies | -11 -10 -10 -10 -7 -5 -5 -4 -4 -4 -3 -2 -2 -2 -------- Run | Yrd Mat Min Sub Scr Fac DSF Fac Was Fac Res Res Tes Frg Total Allies 19 | . . . . . . . . 18 . . 1 . . Largest Group 18 | . . . . . . . . 18 12 . . . . Highest-Rated Group 656 | . . . . . . . . 656 506 . . . . Highest-Rated Ally 50 | . . . . . . . . 50 50 . . . . Total Orders 1 | . . . . . . . . . . 1 . . . EXPLORE 1 | . . . . . . . . . . 1 . . . Ally Attacks 138 | . . . . . . . . 68 70 . . . . Total Damage 6177 | . . . . . . . . 3718 2459 . . . . Kills 27 | . . . . . . . . 10 17 . . . . Allies Corrupted . | . . . . . . . . . . . . . . Allies Melted . | . . . . . . . . . . . . . . Intel | -11 -10 -10 -10 -7 -5 -5 -4 -4 -4 -3 -2 -2 -2 ------- Run | Yrd Mat Min Sub Scr Fac DSF Fac Was Fac Res Res Tes Frg Active Infowar (turns) 3503 | . . . . 546 132 50 108 168 371 754 778 498 98 Optics 3503 | . . . . 546 132 50 108 168 371 754 778 498 98 Sensors 1692 | . . . . . . . 47 168 363 663 451 . . Terrain 283 | . . . . . . . . . . 283 . . . Structural 2073 | . . . . . 16 . 60 168 363 654 778 34 . Cloaking 608 | . . . . . . . . . . 188 420 . . Robot Analysis Total . | . . . . . . . . . . . . . . Derelict Logs Recovered 1 | . . . 1 . . . . . . . . . . Drone Launches 2 | . . . . . . . . . . 2 . . . Drone Recoveries . | . . . . . . . . . . . . . . Exploration | -11 -10 -10 -10 -7 -5 -5 -4 -4 -4 -3 -2 -2 -2 ------------- Run | Yrd Mat Min Sub Scr Fac DSF Fac Was Fac Res Res Tes Frg Turns Passed 3957 | 22 50 40 258 622 132 50 108 168 371 754 778 498 106 Spaces Moved 4807 | 37 93 56 151 1018 162 56 123 116 513 841 947 513 181 Core 1620 | 37 93 56 151 1018 113 . . . . . . . 152 Treads . | . . . . . . . . . . . . . . Legs 17 | . . . . . 17 . . . . . . . . Wheels . | . . . . . . . . . . . . . . Hover 3170 | . . . . . 32 56 123 116 513 841 947 513 29 Flight . | . . . . . . . . . . . . . . Fastest Speed 41 | 50 50 50 50 50 50 70 62 62 51 50 41 55 50 Average Speed 57 | 50 50 50 50 57 69 70 65 62 55 56 60 57 51 Slowest Speed 150 | 50 50 50 50 150 120 71 70 62 62 62 102 98 106 Overloaded Moves . | . . . . . . . . . . . . . . Propulsion Burnouts . | . . . . . . . . . . . . . . Robots Hopped . | . . . . . . . . . . . . . . Potential Cave-ins . | . . . . . . . . . . . . . . Cave-ins Triggered 1 | . . . . . . . . . . . 1 . . Exploration Rate (%) 34 | 4 23 24 22 69 4 88 5 84 15 39 33 60 13 Regions Visited 13 Branch Regions 5 Pre-discovered Areas 4 | . . . . 3 . . . . 1 . . . . Known Exits Taken 5 | . . . . 1 1 . . . 1 1 1 . . Unknown Exits Taken 5 | 1 1 1 1 . . . . . . . . 1 . Scrap Searched 2 | . . . . 2 . . . . . . . . . Spaces Dug 68 | . . . . . 1 . . 1 4 34 18 10 . Terrain Destroyed 268 | . . . . . 1 . . 1 5 93 158 10 . Melee 49 | . . . . . 1 . . 1 4 15 18 10 . Projectile 1 | . . . . . . . . . 1 . . . . AOE 218 | . . . . . . . . . . 78 140 . . Terrain Rammed . | . . . . . . . . . . . . . . Walls Destroyed . | . . . . . . . . . . . . . . Machines Disabled . | . . . . . . . . . . . . . . Actions | -11 -10 -10 -10 -7 -5 -5 -4 -4 -4 -3 -2 -2 -2 --------- Run | Yrd Mat Min Sub Scr Fac DSF Fac Was Fac Res Res Tes Frg Total 5660 | 38 95 59 288 1062 182 65 146 190 577 1054 1086 624 194 Wait 401 | . . . 116 2 . . 9 55 6 121 49 36 7 Move 4794 | 36 92 55 150 1017 161 55 123 115 512 840 945 512 181 Hop . | . . . . . . . . . . . . . . Pick Up 33 | . 2 . . 12 5 . 4 2 3 2 2 1 . Fast Attach 86 | 2 1 . . 9 5 5 4 1 11 17 17 14 . Attach 20 | . . . . 1 4 2 4 . . 3 4 1 1 Detach 11 | . . . . 1 . 2 . . 1 2 2 2 1 Swap 25 | . . . . 2 . . . 4 6 5 8 . . Drop 88 | . . . . 18 6 1 . 2 18 15 14 13 1 Fire 29 | . . . . . . . . 10 8 4 7 . . Melee 165 | . . 4 22 . 1 . 2 1 10 43 37 45 . Ram 5 | . . . . . . . . . 2 . . . 3 Kick . | . . . . . . . . . . . . . . Crush . | . . . . . . . . . . . . . . Escape Stasis 3 | . . . . . . . . . . 2 1 . . Rewire . | . . . . . . . . . . . . . . Trap . | . . . . . . . . . . . . . . Miscellaneous . | . . . . . . . . . . . . . . Route ------- -11/Scrapyard -10/Materials -10/Mines -10/Subcaves -7/Scraptown -5/Factory (discovered 3 exits: Upp x2 / DSF) -5/DSF -4/Factory -4/Waste -4/Factory -3/Research (discovered 4 exits: *Res x2 / Qua x2) -2/Research (discovered 2 exits: [*Acc] / *Tes) -2/Testing (discovered 3 exits: [*Acc] / [*Sec] / [*Frg]) -2/Protoforge History --------- Turn | Location | Event 7 | -11/Scrapyard | Discovered new exit (range 14) 23 | -11/Scrapyard | Entered Materials 55 | -10/Materials | Discovered new exit (range 16) 73 | -10/Materials | Entered Mines 83 | -10/Mines | Assembled infested the area 88 | -10/Mines | Assisted by a Guerilla fighting off Assembled 109 | -10/Mines | Discovered new exit (range 3) 113 | -10/Mines | Entered Subcaves 114 | -10/Subcaves | Approached by a straggling Scientist 305 | -10/Subcaves | Build established: Mutant 371 | -10/Subcaves | Entered Scraptown 371 | -7/Scraptown | System corruption cleaned by C-Scrubber 488 | -7/Scraptown | Visited UFD Registry 488 | -7/Scraptown | Registered with UFD as "Quantumform" 619 | -7/Scraptown | Visited Observation Area 647 | -7/Scraptown | Visited Research Penetration Think Tank 669 | -7/Scraptown | Visited Junk Repository 701 | -7/Scraptown | Visited Sword Containment 706 | -7/Scraptown | Found Prototype Slashing Weapon 706 | -7/Scraptown | Identified Companion Sword 731 | -7/Scraptown | Visited Derelict Rescue Squad 747 | -7/Scraptown | Visited Cartography Club 866 | -7/Scraptown | Found Deep Structural Scanner 872 | -7/Scraptown | Learned location of Extension (-5) 872 | -7/Scraptown | Learned location of Archives (-5) 872 | -7/Scraptown | Learned 12 Materials zone layouts 872 | -7/Scraptown | Learned 16 Research zone layouts 872 | -7/Scraptown | Learned 8 Access zone layouts 872 | -7/Scraptown | Learned 4 Storage zone layouts 872 | -7/Scraptown | Learned 4 Recycling zone layouts 872 | -7/Scraptown | Learned 20 Proximity Caves zone layouts 872 | -7/Scraptown | Learned 24 Proximity Caves zone layouts 872 | -7/Scraptown | Learned 4 Armory zone layouts 872 | -7/Scraptown | Learned Research emergency access door positions 872 | -7/Scraptown | Learned location of 2 exits from Upper Caves 872 | -7/Scraptown | Learned location of 3 exits from Proximity Caves 872 | -7/Scraptown | Learned location of 3 exits from Upper Caves 956 | -7/Scraptown | Met Optimus 956 | -7/Scraptown | Accepted into 0bPrime 992 | -7/Scraptown | Discovered new exit (range 3) 992 | -7/Scraptown | Identified exit to Factory 993 | -7/Scraptown | Entered Factory 993 | -5/Factory | Evolved 10 slots: Power x1, Propulsion x4, Utility x5 994 | -5/Factory | Identified exit to Upper Caves 1125 | -5/Factory | Identified exit to DSF 1125 | -5/Factory | Entered DSF 1146 | -5/DSF | Additional patrols routed to DSF 1165 | -5/DSF | Discovered new exit (range 15) 1174 | -5/DSF | Identified exit to Factory 1175 | -5/DSF | Entered Factory 1175 | -4/Factory | Evolved 2 slots: Utility x2 1176 | -4/Factory | Identified exit to Upper Caves 1283 | -4/Factory | Sucked down chute 1283 | -4/Factory | Entered Waste 1293 | -4/Waste | Spotted C-40 Crusher 1298 | -4/Waste | EMP discharged 1325 | -4/Waste | Spotted C-40 Crusher 1325 | -4/Waste | Spotted C-40 Crusher 1352 | -4/Waste | Met Warlord forces unprepared to attack 1357 | -4/Waste | Allies destroyed C-40 Crusher 1370 | -4/Waste | Allies destroyed C-40 Crusher 1372 | -4/Waste | Spotted C-40 Crusher 1383 | -4/Waste | Spotted C-40 Crusher 1384 | -4/Waste | Spotted C-40 Crusher 1387 | -4/Waste | Allies destroyed C-40 Crusher 1387 | -4/Waste | Destroyed C-40 Crusher 1395 | -4/Waste | Allies destroyed C-40 Crusher 1398 | -4/Waste | EMP discharged 1398 | -4/Waste | System corruption reached 10% 1400 | -4/Waste | Allies destroyed C-40 Crusher 1405 | -4/Waste | Discovered new exit (range 22) 1417 | -4/Waste | Lost 6 allies 1417 | -4/Waste | Identified exit to Factory 1451 | -4/Waste | Entered Factory 1451 | -4/Factory | Accompanied by 12 allies 1591 | -4/Factory | Discovered new exit (range 11) 1596 | -4/Factory | Identified exit to Research 1649 | -4/Factory | Loaded intel: 8 recycling unit locations 1649 | -4/Factory | Garrison activated, responded to threat 1690 | -4/Factory | Learned location of Protoforge (-2) 1691 | -4/Factory | Lost 5 allies 1819 | -4/Factory | Lost 3 allies 1822 | -4/Factory | Entered Research 1822 | -3/Research | Evolved 2 slots: Utility x2 1823 | -3/Research | Identified exit to Quarantine 1823 | -3/Research | Identified exit to Research 1826 | -3/Research | Loaded intel: 5 recycling unit locations 1877 | -3/Research | Spotted B-86 Titan 2491 | -3/Research | Spotted B-86 Titan 2496 | -3/Research | Spotted B-86 Titan 2566 | -3/Research | Discovered exit to Research (range 14) 2574 | -3/Research | Lost 5 parts (1p1n3u) 2576 | -3/Research | Entered another Research area 2576 | -2/Research | Evolved 2 slots: Weapon x2 2577 | -2/Research | Identified exit to Testing 2698 | -2/Research | Loaded intel: 5 recycling unit locations 3270 | -2/Research | Crushed by falling debris 3301 | -2/Research | Lost 4 parts (1n3u) 3326 | -2/Research | First assault squad dispatched 3328 | -2/Research | Discovered new exit (range 9) 3354 | -2/Research | Entered Testing 3369 | -2/Testing | Found Med. Regenerative Plating 3371 | -2/Testing | Found Prototype Protection 3371 | -2/Testing | Identified SHELL Armor 3377 | -2/Testing | Found Prototype Protection 3377 | -2/Testing | Identified Hvy. Regenerative Plating 3381 | -2/Testing | Lost 9 parts (2p2n2u3w) 3387 | -2/Testing | Found Med. Regenerative Plating 3520 | -2/Testing | Found Prototype Energy Gun 3520 | -2/Testing | Identified Hyp. EM Gauss Rifle 3572 | -2/Testing | Discovered new exit (range 17) 3577 | -2/Testing | Found Prototype Launcher 3577 | -2/Testing | Identified Ragnarok Missile Launcher 3651 | -2/Testing | System corruption reached 10% 3764 | -2/Testing | Spotted PG-6E8RMV0LL8 3808 | -2/Testing | Spotted Fortress 3848 | -2/Testing | Discovered new exit (range 7) 3848 | -2/Testing | Discovered new exit (range 6) 3852 | -2/Testing | Entered Protoforge 3864 | -2/Protoforge | Superfortress began startup sequence 3882 | -2/Protoforge | Core integrity fell below 50% 3893 | -2/Protoforge | Spotted Hotshot 3893 | -2/Protoforge | Spotted Hotshot 3894 | -2/Protoforge | Spotted Hotshot 3894 | -2/Protoforge | Spotted Hotshot 3896 | -2/Protoforge | Spotted Hotshot 3897 | -2/Protoforge | Spotted Hotshot 3911 | -2/Protoforge | Core integrity fell below 20% 3939 | -2/Protoforge | Spotted AP7-3 3940 | -2/Protoforge | Spotted AP7-3 3945 | -2/Protoforge | Lost 5 parts (1p3n1u) 3958 | -2/Protoforge | Destroyed by H-88 Terminator with Heavy Machine Gun Last Messages --------------- 03914_ Adv. Launcher Guidance Computer destroyed. 03915_ Penetrated by Slug. 03919_ 3PSO BRTLRHKIPEQEHH2MTPTR:LH 6JTK 03921_ N-04 Retriever collects Terrain Scanner. 03923_ N-04 Retriever collects Unknown Device. 03923_ N-04 Retriever collects Wheel. 03936_ ALERT: Hostiles spotted, dispatching reinforcements to Terminal F012. 03939_ W-44 Eye sends out distress signal. 03949_ Terminal disabled. 03950_ Triggered Segregator Trap. 03950_ Arcs of energy rise from the floor. 03950_ Adv. Melee Analysis Suite blown off. 03950_ Adv. Hacking Suite blown off. 03950_ Triggered Segregator Trap. 03950_ Arcs of energy rise from the floor. 03950_ Adv. Melee Analysis Suite blown off. 03950_ Enh. Optical Array blown off. 03958_ Penetrated by Slug. Map ----- +----------------------------------------------------+ | ??# #?????????????# """""" #?????? ???????? | | ### #?????????????# """ #???####+#"######### | | #?????????????? ????# | | #???????????????? "T??????# | | ###################+##??????# | | ######## ############ | | ### + # ########???? | | # # """" # # #???? | | " #######+############## # """" + + """" #???? | | S #???? ???????????# # """" # # """" #???? | | #???# ?????????# # """" # # """" #???? | | #???# """""" #???????# # # # """" #???? | | #???# "" """ #??????## ######## # #???? | | " #???# #??????"" #??????# ##########?? | | " #???# #??????"T #??????# # """ #?? | | " #???# #??????## #????? + + #??? | | #???# #???????# #???? # # #??? | | ###???# #???????# #??? # #########??? | | #####?##########?????###o #??##### ##?????????? | | ????????????????# ####### #?????????? | | """""????????????????# T" "" #?????????? | | """"" #??????????????# "" T" #?????????? | | """"" #??????????????# #?????????? | | #??????????????# ####### #?????????? | | #??????????????## ##?????#######?????????? | | ""T"" #???????????????# @#??????????????????????? | | """"" #???????????????# #??????????????????????? | | #######???????????????# #??????????????????????? | | ????????????????????? ??????????????????????? | | ???????????????????? ??????????????????????? | | ??????????????????? ??????????????????????? | | ?????????????????? ??????????????????????? | | ?????????????????##+###### ?????????????????????? | | ?????????????????????????? ?????????????????????? | | ?????????????????????????? ?????????????????????? | | #########????????????????? ?????????????????????? | | #????????????????? ????????????????????? | | #?????????????????k ????????????????????? | | " """" #????????????????? ????????????????????? | | " """"???????????????????? ????????????????????? | | " ""??????????????????????? ?????????????????????? | | " ""?????????????????????????????????????????????? | | " ""?????????????????????????????????????????????? | | " ""?????????????????????????????????????????????? | | ??????????????????????????????????????????????? | | ???????????????????????????????????????????????? | | ???????????????????????????????????????????????? | | ????????????????????????????????????????????????? | | ?????????????????????????????????????????????????? | | ?????????????????????????????????????????????????? | +----------------------------------------------------+ Best States ------------- Heat Dissipation 73 Energy Generation 51 Energy Capacity 395 Matter Stores 300 Matter Capacity 300 Sight Range 22 Robot Scan Range 18 Terrain Scan Range 20 Terrain Scan Density 10 Cloak Strength 4 Power Amplification 30 Armor Coverage 1125 Propulsion Shielding 66 Utility Shielding 66 Phase Shifting 15 Evasion (%) 70 Melee Accuracy 22 Launcher Accuracy 40 Target Analysis 8 Offensive Hacking 24 Defensive Hacking 10 Item Schematics ----------------- Lgt. Regenerative Plating | -2/Testing | Hacked Med. Regenerative Plating | -2/Testing | Hacked Enh. Multireflex Exoskeleton | -2/Testing | Archive Adv. Gravity Neutralizer | -2/Testing | Archive Imp. Energy Well | -2/Testing | Archive Robot Schematics ------------------ H-77 Assassin | -2/Testing | Archive Fabricated ------------ Nothing Repaired ---------- Nothing Studied --------- Imp. Gyrokinetic Inverter | -4/Factory | Hacked Missile Launcher | -3/Research | Hacked Mic. Antimatter Reactor | -3/Research | Hacked Lgt. Antimatter Reactor | -3/Research | Hacked Hvy. Shock Bomb Launcher | -2/Testing | Hacked Alien Tech Used ----------------- None Achievements -------------- None Challenges ------------ None Game ------ Seed PulseLaunchTerrabomb Manual? 0 Play Time 00:52:34 Cumulative 376.1 hours Start 2025.11.05 @ 19:29:17 End 2025.11.05 @ 20:22:22 Sessions 1 Manual Loads 0 Difficulty Rogue Special Mode None Game No. 337 Rogue 337 Adventurer 0 Explorer 0 Win Type - Total 3 Types 2/1/0/0/0/0/0/0/0/0 Lore% 84 Gallery% 83 Achievement% 60 Wizard Run 0 Options --------- Layout 1 ASCII 0 Keyboard 0 Movement Numpad Keybinds 0 Fullscreen 1 Font 24/Smallcaps Map View 50x35 Zoom Use 0% Tactical HUD 1 Map Filters NONE Filters NONE Steam 1 RUN: 900d57c7-e810-41eb-bf83-ac6d0b30dc5c